fUSD/lending_fUSD_20260526
["ID","MTS","AMOUNT","RATE_DAILY","PERIOD"]
[423037502,1779780707000,-579.88197956,0.00039755,38]
[423037498,1779780707000,-311.1,0.00039755,31]
[423037503,1779780707000,-151.0,0.00039755,38]
[423037516,1779780707000,-500.0,0.00039755,30]
[423037510,1779780707000,-168.38880561,0.00039755,38]
[423037514,1779780707000,-557.5788265,0.00039755,38]
[423037524,1779780707000,-2487.15318208,0.00039755,30]
[423037506,1779780707000,-500.0,0.00039755,30]
[423037508,1779780707000,-322.6107,0.00039755,49]
[423037512,1779780707000,-162.380719,0.00039755,49]
[423037513,1779780707000,-500.0,0.00039755,30]
[423037507,1779780707000,-1672.7364795,0.00039755,30]
[423037505,1779780707000,-152.0,0.00039755,38]
[423037504,1779780707000,-2230.315306,0.00039755,30]
[423037509,1779780707000,-500.0,0.00039755,38]
[423037511,1779780707000,-5995.0,0.00039755,30]
[423037590,1779780708000,-731.06,0.000398,120]
[423037591,1779780708000,-237.74,0.000398,120]
[423037586,1779780708000,-658.13,0.000398,120]
[423037598,1779780708000,-708.68,0.000398,120]
[423037597,1779780708000,-3568.22,0.000398,120]
[423037599,1779780708000,-2956.2,0.000398,120]
[423037583,1779780708000,-752.32653796,0.000398,120]
[423037578,1779780708000,-500000.0,0.0003979,120]
[423037584,1779780708000,-49325.58998294,0.000398,2]
[423037585,1779780708000,-830.64,0.000398,120]
[423037577,1779780708000,-500000.5,0.0003979,120]
[423037589,1779780708000,-9405.49,0.000398,120]
[423037587,1779780708000,-1454.4,0.000398,120]
[423037588,1779780708000,-1319.35,0.000398,120]
[423037612,1779780708000,-3480.39,0.00039824,120]
[423037593,1779780708000,-693.2,0.000398,120]
[423037594,1779780708000,-499.77,0.000398,120]
[423037596,1779780708000,-2023.57,0.000398,120]
[423037595,1779780708000,-1286.85,0.000398,120]
[423037600,1779780708000,-398.06,0.000398,120]
[423037602,1779780708000,-151.5,0.000398,120]
[423037603,1779780708000,-724.8,0.000398,120]
[423037606,1779780708000,-250.0,0.000398,30]
[423037601,1779780708000,-226.68,0.000398,120]
[423037604,1779780708000,-437.11,0.000398,120]
[423037607,1779780708000,-250.0,0.000398,30]
[423037605,1779780708000,-402.78,0.000398,120]
[423037580,1779780708000,-6884434.07179719,0.000398,120]
[423037592,1779780708000,-407.78,0.000398,120]
[423037581,1779780708000,-324.26519805,0.000398,14]
[423037550,1779780708000,-500.0,0.00039755,30]
[423037579,1779780708000,-1418.24274497,0.0003979,2]
[423037610,1779780708000,-3480.39,0.00039824,120]
[423037551,1779780708000,-500.0,0.00039755,30]
[423037549,1779780708000,-6006.30515225,0.00039755,30]
[423037552,1779780708000,-500.0,0.00039755,30]
[423037560,1779780708000,-500.0,0.00039755,30]
[423037554,1779780708000,-500.0,0.00039755,30]
[423037553,1779780708000,-500.0,0.00039755,30]
[423037557,1779780708000,-500.0,0.00039755,30]
[423037559,1779780708000,-500.0,0.00039755,30]
[423037561,1779780708000,-500.0,0.00039755,30]
[423037555,1779780708000,-500.0,0.00039755,30]
[423037556,1779780708000,-500.0,0.00039755,30]
[423037558,1779780708000,-500.0,0.00039755,30]
[423037582,1779780708000,-19547.11933041,0.000398,30]
[423037562,1779780708000,-500.0,0.00039755,30]
[423037573,1779780708000,-657.96,0.00039756,120]
[423037566,1779780708000,-5000.0,0.00039756,2]
[423037564,1779780708000,-2000.0,0.00039756,30]
[423037565,1779780708000,-183.43,0.00039756,2]
[423037567,1779780708000,-629.64677646,0.00039756,5]
[423037569,1779780708000,-425.56115439,0.00039756,60]
[423037571,1779780708000,-385.72,0.00039756,120]
[423037570,1779780708000,-385.72,0.00039756,120]
[423037568,1779780708000,-1119.32,0.00039756,120]
[423037572,1779780708000,-2167.72,0.00039756,2]
[423037574,1779780708000,-567.82245092,0.00039765,120]
[423037576,1779780708000,-1660.86,0.00039782,2]
[423037575,1779780708000,-1660.86,0.00039782,2]
[423037563,1779780708000,-500.0,0.00039755,30]
[423037611,1779780708000,-3480.39,0.00039824,120]
[423037672,1779780708000,-167.9180508,0.00039999,31]
[423037608,1779780708000,-3480.33,0.00039824,120]
[423037643,1779780708000,-75442.57853511,0.0003997,2]
[423037644,1779780708000,-4814.92452549,0.0003999,120]
[423037641,1779780708000,-900.0,0.000399,120]
[423037645,1779780708000,-2084.32470819,0.00039995,120]
[423037647,1779780708000,-7820.083898,0.00039999,30]
[423037646,1779780708000,-3924.56533149,0.00039999,120]
[423037651,1779780708000,-500.0,0.00039999,31]
[423037652,1779780708000,-532.68014314,0.00039999,31]
[423037653,1779780708000,-425.78100046,0.00039999,31]
[423037657,1779780708000,-500.0,0.00039999,31]
[423037662,1779780708000,-319.30180479,0.00039999,31]
[423037654,1779780708000,-500.0,0.00039999,31]
[423037655,1779780708000,-277.44842055,0.00039999,31]
[423037649,1779780708000,-500.0,0.00039999,31]
[423037663,1779780708000,-500.0,0.00039999,31]
[423037656,1779780708000,-500.0,0.00039999,31]
[423037659,1779780708000,-500.0,0.00039999,31]
[423037658,1779780708000,-500.0,0.00039999,31]
[423037660,1779780708000,-500.0,0.00039999,31]
[423037664,1779780708000,-500.0,0.00039999,31]
[423037665,1779780708000,-500.0,0.00039999,31]
[423037671,1779780708000,-216.30364661,0.00039999,31]
[423037668,1779780708000,-500.0,0.00039999,31]
[423037670,1779780708000,-500.0,0.00039999,31]
[423037666,1779780708000,-500.0,0.00039999,31]
[423037669,1779780708000,-500.0,0.00039999,31]
[423037609,1779780708000,-3480.39,0.00039824,120]
[423037673,1779780708000,-500.0,0.00039999,31]
[423037661,1779780708000,-500.0,0.00039999,31]
[423037640,1779780708000,-152.0,0.000399,120]
[423037667,1779780708000,-297.97454843,0.00039999,31]
[423037637,1779780708000,-1000.0,0.000399,30]
[423037642,1779780708000,-19036.2044501,0.0003995,7]
[423037613,1779780708000,-3480.39,0.00039824,120]
[423037615,1779780708000,-3480.39,0.00039824,120]
[423037619,1779780708000,-3480.39,0.00039824,120]
[423037620,1779780708000,-3480.39,0.00039824,120]
[423037621,1779780708000,-3480.39,0.00039824,120]
[423037618,1779780708000,-3480.39,0.00039824,120]
[423037617,1779780708000,-3480.39,0.00039824,120]
[423037623,1779780708000,-3480.39,0.00039824,120]
[423037616,1779780708000,-3480.39,0.00039824,120]
[423037622,1779780708000,-3480.39,0.00039824,120]
[423037627,1779780708000,-1188.76254875,0.0003987,120]
[423037624,1779780708000,-370.86,0.00039825,120]
[423037626,1779780708000,-313817.99439307,0.0003987,14]
[423037614,1779780708000,-3480.39,0.00039824,120]
[423037629,1779780708000,-232.88878832,0.0003988,120]
[423037650,1779780708000,-500.0,0.00039999,31]
[423037648,1779780708000,-1887.98,0.00039999,14]
[423037639,1779780708000,-171.445995,0.000399,120]
[423037638,1779780708000,-190.53584102,0.000399,120]
[423037628,1779780708000,-691.89663153,0.0003988,30]
[423037632,1779780708000,-9345.36783641,0.0003988,120]
[423037633,1779780708000,-170.39924994,0.00039885,120]
[423037635,1779780708000,-459.05224065,0.00039885,120]
[423037636,1779780708000,-193.14847917,0.00039885,120]
[423037625,1779780708000,-150.0,0.0003986,6]
[423037634,1779780708000,-350.0,0.00039885,120]
[423037631,1779780708000,-1723.00513606,0.0003988,3]
[423037630,1779780708000,-8204.30233196,0.0003988,55]
[423037716,1779780709000,-30000.0,0.0004,10]
[423037715,1779780709000,-1000.0,0.0004,7]
[423037712,1779780709000,-162.28354378,0.0004,2]
[423037710,1779780709000,-30154.53142586,0.0004,2]
[423037705,1779780709000,-10867.33065926,0.0004,2]
[423037711,1779780709000,-610.54289207,0.0004,2]
[423037706,1779780709000,-5269.17894202,0.0004,7]
[423037709,1779780709000,-515.81836327,0.0004,2]
[423037708,1779780709000,-834.2864736,0.0004,30]
[423037707,1779780709000,-158245.88821525,0.0004,30]
[423037721,1779780709000,-1000000.0,0.0004,120]
[423037719,1779780709000,-10300.0,0.0004,7]
[423037722,1779780709000,-1000000.0,0.0004,120]
[423037714,1779780709000,-300.0,0.0004,30]
[423037718,1779780709000,-1000000.0,0.0004,120]
[423037720,1779780709000,-1000000.0,0.0004,120]
[423037717,1779780709000,-1000000.0,0.0004,120]
[423037724,1779780709000,-1000000.0,0.0004,120]
[423037727,1779780709000,-1000000.0,0.0004,120]
[423037725,1779780709000,-1000000.0,0.0004,120]
[423037723,1779780709000,-1000000.0,0.0004,120]
[423037731,1779780709000,-1000000.0,0.0004,120]
[423037726,1779780709000,-1000000.0,0.0004,120]
[423037732,1779780709000,-1000000.0,0.0004,120]
[423037701,1779780709000,-319.72803795,0.0004,2]
[423037713,1779780709000,-1000.0,0.0004,50]
[423037704,1779780709000,-1046.56089498,0.0004,30]
[423037698,1779780709000,-1708.81911486,0.0004,2]
[423037700,1779780709000,-364.17452263,0.0004,15]
[423037728,1779780709000,-1000000.0,0.0004,120]
[423037675,1779780709000,-500.0,0.00039999,31]
[423037674,1779780709000,-500.0,0.00039999,31]
[423037676,1779780709000,-500.0,0.00039999,31]
[423037679,1779780709000,-500.0,0.00039999,31]
[423037677,1779780709000,-500.0,0.00039999,31]
[423037678,1779780709000,-500.0,0.00039999,31]
[423037680,1779780709000,-647.53659906,0.00039999,31]
[423037682,1779780709000,-647.53659906,0.00039999,31]
[423037686,1779780709000,-153.21842259,0.0004,120]
[423037684,1779780709000,-156.31073718,0.0004,120]
[423037683,1779780709000,-647.53659906,0.00039999,31]
[423037702,1779780709000,-3000.0,0.0004,7]
[423037685,1779780709000,-167.06718781,0.0004,120]
[423037689,1779780709000,-2000.0,0.0004,120]
[423037691,1779780709000,-824.18470877,0.0004,3]
[423037690,1779780709000,-51508.15456022,0.0004,14]
[423037695,1779780709000,-1586.53838533,0.0004,2]
[423037687,1779780709000,-161.94213057,0.0004,120]
[423037694,1779780709000,-396.55105484,0.0004,2]
[423037697,1779780709000,-22320.0338699,0.0004,30]
[423037692,1779780709000,-154059.98107731,0.0004,30]
[423037693,1779780709000,-26290.65670183,0.0004,2]
[423037696,1779780709000,-4178.1902188,0.0004,2]
[423037699,1779780709000,-1714.91752067,0.0004,30]
[423037703,1779780709000,-164.06261668,0.0004,2]
[423037688,1779780709000,-159.18,0.0004,120]
[423037729,1779780709000,-1000000.0,0.0004,120]
[423037681,1779780709000,-647.53659906,0.00039999,31]
[423037730,1779780709000,-1000000.0,0.0004,120]
[423037762,1779780709000,-303.522,0.0004,120]
[423037770,1779780709000,-250.0,0.0004,7]
[423037771,1779780709000,-1070.7435867,0.0004,120]
[423037769,1779780709000,-250.0,0.0004,7]
[423037761,1779780709000,-500.0,0.0004,120]
[423037764,1779780709000,-231.0,0.0004,120]
[423037763,1779780709000,-225700.0,0.0004,90]
[423037768,1779780709000,-250.0,0.0004,7]
[423037774,1779780709000,-1500.0,0.0004,30]
[423037772,1779780709000,-1912.35026742,0.0004,30]
[423037776,1779780709000,-1000.0,0.0004,30]
[423037773,1779780709000,-1014868.0,0.0004,120]
[423037767,1779780709000,-1100.0,0.0004,15]
[423037775,1779780709000,-154.46096411,0.0004,120]
[423037778,1779780709000,-245.3475904,0.0004,120]
[423037782,1779780709000,-158.0,0.0004,2]
[423037786,1779780709000,-5000.0,0.0004,90]
[423037780,1779780709000,-318.0,0.0004,14]
[423037781,1779780709000,-9000.0,0.0004,120]
[423037783,1779780709000,-451.66578437,0.0004,120]
[423037784,1779780709000,-850.0,0.0004,30]
[423037787,1779780709000,-9649.0,0.0004,120]
[423037789,1779780709000,-50383.42974538,0.0004,30]
[423037785,1779780709000,-13311.63,0.0004,30]
[423037788,1779780709000,-5146.0,0.0004,30]
[423037734,1779780709000,-1000000.0,0.0004,120]
[423037779,1779780709000,-10000.0,0.0004,30]
[423037759,1779780709000,-250.0,0.0004,120]
[423037777,1779780709000,-253.68071648,0.0004,7]
[423037765,1779780709000,-232.0,0.0004,120]
[423037766,1779780709000,-167.0,0.0004,120]
[423037733,1779780709000,-1000000.0,0.0004,120]
[423037736,1779780709000,-1000000.0,0.0004,120]
[423037735,1779780709000,-1000000.0,0.0004,120]
[423037744,1779780709000,-1000000.0,0.0004,120]
[423037742,1779780709000,-1000000.0,0.0004,120]
[423037743,1779780709000,-1000000.0,0.0004,120]
[423037746,1779780709000,-1000000.0,0.0004,120]
[423037740,1779780709000,-1000000.0,0.0004,120]
[423037745,1779780709000,-1000000.0,0.0004,120]
[423037738,1779780709000,-1000000.0,0.0004,120]
[423037739,1779780709000,-1000000.0,0.0004,120]
[423037737,1779780709000,-1000000.0,0.0004,120]
[423037741,1779780709000,-1000000.0,0.0004,120]
[423037747,1779780709000,-1000000.0,0.0004,120]
[423037760,1779780709000,-180.0,0.0004,120]
[423037748,1779780709000,-1000000.0,0.0004,120]
[423037755,1779780709000,-70000.0,0.0004,30]
[423037753,1779780709000,-2934.86530327,0.0004,120]
[423037757,1779780709000,-453.99244529,0.0004,120]
[423037758,1779780709000,-235.71826,0.0004,10]
[423037754,1779780709000,-70000.0,0.0004,30]
[423037756,1779780709000,-1051.0,0.0004,30]
[423037752,1779780709000,-171.98275873,0.0004,120]
[423037751,1779780709000,-1000006.77,0.0004,120]
[423037750,1779780709000,-668.21278848,0.0004,120]
[423037749,1779780709000,-8800.0,0.0004,30]
[423037791,1779780710000,-176.70320003,0.0004,30]
[423037790,1779780710000,-151.0,0.00032877,7]
[423037792,1779780762000,195.32,0.00026507,120]
[423037839,1779781832000,-163.5,0.000179,2]
[423037846,1779781832000,-2531.65,0.00019197,2]
[423037840,1779781832000,-350.0,0.00018,2]
[423037847,1779781832000,-200.0,0.00019245,2]
[423037841,1779781832000,-166.66,0.00018399,2]
[423037842,1779781832000,-151.0,0.0001841,2]
[423037854,1779781832000,-151.0,0.00019659,2]
[423037850,1779781832000,-151.0,0.00019659,2]
[423037852,1779781832000,-151.0,0.00019659,2]
[423037849,1779781832000,-810.51,0.00019619,2]
[423037853,1779781832000,-151.0,0.00019659,2]
[423037857,1779781832000,-151.0,0.00019659,2]
[423037861,1779781832000,-151.0,0.00019659,2]
[423037843,1779781832000,-449.42469043,0.00018521,2]
[423037848,1779781832000,-166.66,0.00019561,2]
[423037824,1779781832000,-161.72,0.00010318,2]
[423037844,1779781832000,-166.66,0.00018787,2]
[423037858,1779781832000,-151.0,0.00019659,2]
[423037825,1779781832000,-300.14365949,0.00013942,2]
[423037827,1779781832000,-2500.0,0.00014403,2]
[423037828,1779781832000,-5.4689444,0.00014403,2]
[423037837,1779781832000,-167.72,0.00016712,2]
[423037838,1779781832000,-500.0,0.000179,2]
[423037845,1779781832000,-166.66,0.00019174,2]
[423037826,1779781832000,-250.0,0.00014,2]
[423037831,1779781832000,-600.0,0.00014986,2]
[423037834,1779781832000,-300.0,0.00014986,2]
[423037836,1779781832000,-300.0,0.00016,2]
[423037832,1779781832000,-300.0,0.00014986,2]
[423037833,1779781832000,-300.0,0.00014986,2]
[423037835,1779781832000,-300.0,0.00014986,2]
[423037830,1779781832000,-234.45185639,0.00014403,2]
[423037856,1779781832000,-151.0,0.00019659,2]
[423037829,1779781832000,-2494.5310556,0.00014403,2]
[423037855,1779781832000,-151.0,0.00019659,2]
[423037889,1779781832000,-167.09,0.00020477,2]
[423037900,1779781832000,-9999.99,0.00020951,2]
[423037892,1779781832000,-644.62,0.00020548,2]
[423037896,1779781832000,-150.23722778,0.0002058,2]
[423037899,1779781832000,-9999.99,0.00020951,2]
[423037909,1779781832000,-1929.27379233,0.00020951,2]
[423037894,1779781832000,-150.0,0.0002058,2]
[423037903,1779781832000,-1048.9350378,0.00020951,2]
[423037898,1779781832000,-264.19543481,0.00020763,2]
[423037902,1779781832000,-2779.27105512,0.00020951,2]
[423037907,1779781832000,-1006.79712,0.00020951,2]
[423037908,1779781832000,-1150.935,0.00020951,2]
[423037910,1779781832000,-353.8945,0.00020951,2]
[423037862,1779781832000,-151.0,0.00019659,2]
[423037906,1779781832000,-1012.99585992,0.00020951,2]
[423037887,1779781832000,-151.0,0.00020381,2]
[423037890,1779781832000,-493.0,0.00020518,2]
[423037876,1779781832000,-229.0,0.0002,2]
[423037860,1779781832000,-151.0,0.00019659,2]
[423037851,1779781832000,-151.0,0.00019659,2]
[423037859,1779781832000,-151.0,0.00019659,2]
[423037863,1779781832000,-386.64,0.00019667,2]
[423037869,1779781832000,-166.66,0.00019949,2]
[423037867,1779781832000,-191.94544244,0.00019948,30]
[423037875,1779781832000,-191.94544244,0.00019993,7]
[423037865,1779781832000,-500.0,0.00019865,2]
[423037873,1779781832000,-296.47,0.00019973,2]
[423037881,1779781832000,-493.0,0.00020017,2]
[423037877,1779781832000,-196.0,0.0002,2]
[423037883,1779781832000,-150.0,0.00020182,2]
[423037879,1779781832000,-441.0,0.0002,2]
[423037885,1779781832000,-166.66,0.00020336,2]
[423037871,1779781832000,-191.94544244,0.00019973,7]
[423037918,1779781838000,-441.0,0.00021,2]
[423037914,1779781838000,-87.71236517,0.00020951,2]
[423037913,1779781838000,-717.88763483,0.00020951,2]
[423037915,1779781838000,-63.27763483,0.00020951,2]
[423037917,1779781838000,-196.0,0.00021,2]
[423037916,1779781838000,-229.0,0.00021,2]
[423037920,1779781838000,-247.86025356,0.00021018,2]
[423037926,1779781838000,-19926.53914176,0.00021159,2]
[423037919,1779781838000,-245.13974644,0.00021018,2]
[423037927,1779781838000,-39766.45996109,0.00021159,2]
[423037924,1779781838000,-383.736,0.00021059,2]
[423037925,1779781838000,-529.24029686,0.00021059,2]
[423037921,1779781838000,-109.17342732,0.00021059,2]
[423037923,1779781838000,-258.6,0.00021059,2]
[423037922,1779781838000,-1096.30377582,0.00021059,2]
[423037928,1779781838000,-45350.0,0.00021159,2]
[423037936,1779781840000,-776.65353543,0.00021159,2]
[423037934,1779781840000,-1345.70035005,0.00021159,2]
[423037935,1779781840000,-534.0,0.00021159,2]
[423037939,1779781843000,-457.68,0.00021159,2]
[423037937,1779781843000,-807.21,0.00021159,2]
[423037938,1779781843000,-1452.0,0.00021159,2]
[423037995,1779781848000,-5117.57307737,0.00021159,2]
[423037996,1779781848000,-1557.76467657,0.00021159,2]
[423037994,1779781848000,-1127.99615857,0.00021159,2]
[423038017,1779782766000,188.0,8.1e-05,2]
[423038024,1779783034000,-161.90935228,0.00012736,2]
[423038025,1779783034000,-337.53060615,0.0001401,2]
[423038026,1779783034000,-28.64049052,0.0001401,2]
[423038031,1779783034000,-249.7028356,0.00019683,2]
[423038029,1779783034000,-202.64208698,0.00019683,2]
[423038027,1779783034000,-166.29,0.0001592,2]
[423038030,1779783034000,-15.28906415,0.00019683,2]
[423038028,1779783034000,-166.29,0.00019104,2]
[423038033,1779783034000,-74.30632113,0.0002,2]
[423038032,1779783034000,-303.0,0.0002,2]
[423038035,1779783034000,-453.0,0.0002,2]
[423038044,1779783034000,-151.0,0.00020868,2]
[423038046,1779783034000,-151.0,0.00020868,2]
[423038023,1779783034000,-166.29,0.00012736,2]
[423038040,1779783034000,-150.0,0.00020669,2]
[423038045,1779783034000,-151.0,0.00020868,2]
[423038034,1779783034000,-149.69367887,0.0002,2]
[423038037,1779783034000,-3458.1578856,0.00020669,2]
[423038052,1779783034000,-453.0,0.00021,2]
[423038049,1779783034000,-151.0,0.00020868,2]
[423038051,1779783034000,-224.0,0.00021,2]
[423038048,1779783034000,-107.03775637,0.00020868,2]
[423038054,1779783034000,-4703.95525637,0.00021059,2]
[423038053,1779783034000,-361.96224363,0.00021059,2]
[423038050,1779783034000,-303.0,0.00021,2]
[423038043,1779783034000,-151.0,0.00020868,2]
[423038042,1779783034000,-151.0,0.00020868,2]
[423038038,1779783034000,-293.4671236,0.00020669,2]
[423038041,1779783034000,-163.41522044,0.00020669,2]
[423038036,1779783034000,-273.0,0.0002,2]
[423038047,1779783034000,-43.96224363,0.00020868,2]
[423038039,1779783034000,-8092.9353902,0.00020669,2]
[423038109,1779783035000,-153.68,0.00024658,2]
[423038111,1779783035000,-3547.0,0.00024756,2]
[423038110,1779783035000,-153.79,0.00024658,2]
[423038106,1779783035000,-151.0,0.00024324,2]
[423038107,1779783035000,-200.0,0.00024466,2]
[423038114,1779783035000,-208.92835186,0.00024838,2]
[423038115,1779783035000,-215.42269777,0.00024838,2]
[423038113,1779783035000,-1355.0,0.00024756,2]
[423038108,1779783035000,-1000.0,0.00024658,2]
[423038104,1779783035000,-420.30059317,0.00024187,2]
[423038112,1779783035000,-307.435,0.00024756,2]
[423038124,1779783035000,-153.79,0.00024992,7]
[423038116,1779783035000,-160.36958817,0.000249,2]
[423038128,1779783035000,-242.0,0.00025,2]
[423038132,1779783035000,-309.31,0.00025024,2]
[423038126,1779783035000,-319.0,0.00025,2]
[423038122,1779783035000,-153.68,0.00024992,7]
[423038120,1779783035000,-1596.02575107,0.000249,2]
[423038103,1779783035000,-3636.0,0.00024187,2]
[423038130,1779783035000,-459.0,0.00025,2]
[423038136,1779783035000,-500.0,0.00025081,2]
[423038141,1779783035000,-160.36958817,0.000251,2]
[423038139,1779783035000,-505.0,0.00025082,2]
[423038134,1779783035000,-5000.0,0.00025043,2]
[423038118,1779783035000,-194.57200394,0.000249,2]
[423038105,1779783035000,-510.69940683,0.00024187,2]
[423038097,1779783035000,-167.09,0.00023857,2]
[423038100,1779783035000,-224.0,0.00024,2]
[423038143,1779783035000,-194.57200394,0.000251,2]
[423038055,1779783035000,-1225.0,0.00021187,2]
[423038056,1779783035000,-3636.0,0.00021187,2]
[423038059,1779783035000,-600.0,0.00021516,7]
[423038061,1779783035000,-1637.5634,0.00021656,2]
[423038063,1779783035000,-3547.0,0.00021756,2]
[423038057,1779783035000,-931.0,0.00021187,2]
[423038065,1779783035000,-928.0,0.00021756,2]
[423038067,1779783035000,-1355.0,0.00021756,2]
[423038073,1779783035000,-150.99,0.00021757,2]
[423038069,1779783035000,-525.0,0.00021756,2]
[423038102,1779783035000,-453.0,0.00024,2]
[423038075,1779783035000,-500.0,0.000219,2]
[423038077,1779783035000,-303.0,0.00022,2]
[423038090,1779783035000,-224.0,0.00023,2]
[423038092,1779783035000,-453.0,0.00023,2]
[423038079,1779783035000,-224.0,0.00022,2]
[423038094,1779783035000,-500.0,0.00023702,2]
[423038084,1779783035000,-151.0,0.00022353,2]
[423038081,1779783035000,-453.0,0.00022,2]
[423038088,1779783035000,-303.0,0.00023,2]
[423038086,1779783035000,-543.99,0.00022466,2]
[423038082,1779783035000,-166.29,0.00022288,2]
[423038098,1779783035000,-303.0,0.00024,2]
[423038071,1779783035000,-8790.12,0.00021757,2]
[423038144,1779783035000,-1596.02575107,0.000251,2]
[423038173,1779783035000,-153.68,0.00026328,30]
[423038146,1779783035000,-5531.0,0.000253,5]
[423038171,1779783035000,-151.0,0.00026296,2]
[423038174,1779783035000,-153.79,0.00026328,30]
[423038175,1779783035000,-502.36932317,0.00026508,2]
[423038176,1779783035000,-505.0,0.00026527,3]
[423038177,1779783035000,-163.56,0.00026776,2]
[423038181,1779783035000,-500.0,0.00027205,2]
[423038183,1779783035000,-1483.99781622,0.00027348,2]
[423038184,1779783035000,-1500.0,0.00027397,2]
[423038182,1779783035000,-505.0,0.0002725,4]
[423038188,1779783035000,-15683.34,0.00027397,10]
[423038186,1779783035000,-1467.22,0.00027397,2]
[423038200,1779783035000,-159.37,0.00027622,7]
[423038187,1779783035000,-18820.01,0.00027397,10]
[423038189,1779783035000,-3458.1578856,0.00027437,2]
[423038190,1779783035000,-293.4671236,0.00027437,2]
[423038193,1779783035000,-150.0,0.00027521,2]
[423038196,1779783035000,-159.37,0.0002755,2]
[423038194,1779783035000,-2232.38,0.0002755,30]
[423038195,1779783035000,-939.93,0.0002755,30]
[423038192,1779783035000,-197.2,0.00027448,2]
[423038197,1779783035000,-1872.23,0.0002755,30]
[423038198,1779783035000,-939.94,0.0002755,30]
[423038199,1779783035000,-159.48,0.0002755,2]
[423038145,1779783035000,-296.47,0.00025293,2]
[423038191,1779783035000,-8092.9353902,0.00027437,2]
[423038172,1779783035000,-153.88,0.00026328,30]
[423038185,1779783035000,-300.0,0.00027397,2]
[423038180,1779783035000,-931.0,0.00027187,2]
[423038148,1779783035000,-153.79,0.00025326,30]
[423038147,1779783035000,-153.68,0.00025326,30]
[423038150,1779783035000,-194.57200394,0.000254,2]
[423038170,1779783035000,-197.2,0.00026172,2]
[423038151,1779783035000,-1596.02575107,0.000254,2]
[423038156,1779783035000,-1596.02575107,0.000256,2]
[423038158,1779783035000,-153.68,0.0002566,2]
[423038153,1779783035000,-197.2,0.00025533,2]
[423038154,1779783035000,-160.36958817,0.000256,2]
[423038157,1779783035000,-1000.0,0.000256,2]
[423038152,1779783035000,-166.29,0.00025472,2]
[423038159,1779783035000,-153.79,0.0002566,2]
[423038155,1779783035000,-194.57200394,0.000256,2]
[423038149,1779783035000,-160.36958817,0.000254,2]
[423038160,1779783035000,-505.0,0.00025805,2]
[423038161,1779783035000,-175.14,0.00025854,2]
[423038178,1779783035000,-197.2,0.0002681,2]
[423038166,1779783035000,-153.79,0.00025994,7]
[423038162,1779783035000,-160.36958817,0.000259,2]
[423038167,1779783035000,-928.0,0.00026,2]
[423038179,1779783035000,-3636.0,0.00027187,2]
[423038168,1779783035000,-309.0,0.00026,2]
[423038164,1779783035000,-1596.02575107,0.000259,2]
[423038165,1779783035000,-153.68,0.00025994,7]
[423038169,1779783035000,-1000.0,0.00026,2]
[423038163,1779783035000,-194.57200394,0.000259,2]
[423038223,1779783036000,-2232.38,0.00028033,30]
[423038220,1779783036000,-505.0,0.00027973,5]
[423038221,1779783036000,-159.37,0.00027985,2]
[423038219,1779783036000,-159.48,0.00027912,30]